bitfinex/quotes_ETHUSD_20250625
["timestamp","ask_amount","ask_price","bid_price","bid_amount"]
[1750864975971,4.35927641,2408.5,2408.0,4.36000518]
[1750864976167,4.15204531,2408.5,2408.0,4.15282156]
[1750864976389,4.15262009,2408.2,2407.9,0.2072]
[1750864976888,0.2072,2408.3,2407.9,0.2072]
[1750864977186,4.35953747,2408.3,2407.9,0.2072]
[1750864977973,4.15250067,2408.2,2407.9,0.2072]
[1750864978283,4.35962885,2408.3,2407.9,0.2072]
[1750864978482,0.2072,2408.3,2407.9,0.2072]
[1750864978687,0.2072,2408.3,2407.9,4.36018055]
[1750864978875,4.35951347,2408.3,2407.9,0.2072]
[1750864979062,0.2072,2408.3,2407.9,0.2072]
[1750864979258,0.2072,2408.3,2407.9,0.64322377]
[1750864979460,2.3452,2408.5,2408.2,4.15238924]
[1750864979704,0.2072,2408.5,2408.2,4.15238924]
[1750864980302,2.8997,2408.9,2408.1,0.7775]
[1750864980511,0.2072,2408.8,2408.4,0.2072]
[1750864980705,0.2072,2408.8,2408.6,4.15170563]
[1750864981006,0.2072,2408.8,2408.4,4.35923375]
[1750864981308,0.2072,2408.8,2408.4,4.35926394]
[1750864981520,4.1504334,2409.4,2408.7,4.15161705]
[1750864981839,4.35787966,2409.3,2408.9,0.2072]
[1750864982179,0.2072,2409.3,2408.9,4.35844114]
[1750864982379,0.2072,2409.3,2408.9,4.35846875]
[1750864982601,0.2072,2409.3,2409.0,4.15110004]
[1750864982811,0.2072,2409.3,2409.1,4.15090012]
[1750864983819,0.2072,2409.3,2408.9,0.2072]
[1750864984044,0.2072,2409.3,2409.1,4.15082855]
[1750864984214,0.2072,2409.3,2409.0,0.7819]
[1750864984512,6.49245582,2409.5,2409.1,0.2072]
[1750864984715,5.07064558,2409.5,2409.1,0.2072]
[1750864984884,2.3422,2409.5,2409.2,4.15066853]
[1750864985085,2.3422,2409.5,2409.1,4.35804007]
[1750864985411,2.3422,2409.5,2409.2,4.15072545]
[1750864985580,2.3422,2409.5,2409.1,4.35803441]
[1750864985781,0.2072,2409.5,2409.1,0.2072]
[1750864985981,2.523,2409.9,2409.8,4.14972196]
[1750864987379,2.523,2409.9,2409.8,15.52062196]
[1750864987590,1.2615,2410.5,2410.4,4.97008901]
[1750864987801,1.2615,2410.5,2410.4,12.37508901]
[1750864988002,1.2615,2410.5,2410.4,12.58228901]
[1750864988233,1.2615,2410.5,2410.4,14.9734575]
[1750864988620,1.2615,2410.5,2410.4,7.5684575]
[1750864988804,1.2615,2410.5,2410.4,14.4214575]
[1750864989005,1.2615,2410.5,2410.4,1.0286]
[1750864989238,1.2615,2410.5,2410.3,4.14884729]
[1750864989408,1.2615,2410.5,2410.4,4.14868901]
[1750864989793,1.2615,2410.5,2410.4,4.35588901]
[1750864989994,1.2615,2410.5,2410.2,4.14894305]
[1750864990220,1.4687,2410.5,2410.0,0.7983]
[1750864990423,4.14885535,2410.4,2410.1,0.2072]
[1750864990629,4.14885535,2410.4,2409.9,4.14947548]
[1750864990803,4.14885535,2410.4,2409.9,0.2072]
[1750864990804,4.14886319,2410.3,2409.9,0.2072]
[1750864990999,0.2072,2410.4,2410.1,4.14918662]
[1750864991212,0.2072,2410.4,2410.2,4.14888359]
[1750864991410,0.2072,2410.4,2409.9,0.2072]
[1750864991707,0.2072,2410.4,2410.1,4.14909468]
[1750864992026,0.2072,2410.4,2409.9,0.2072]
[1750864992027,1.42922,2410.4,2409.9,0.2072]
[1750864992197,1.2615,2410.5,2410.4,4.14868901]
[1750864993026,1.2615,2410.5,2410.3,4.14875386]
[1750864993329,1.2615,2410.5,2410.4,4.14868901]
[1750864994618,1.2615,2410.5,2410.4,4.69868901]
[1750864994801,1.2615,2410.5,2410.4,6.40509158]
[1750864995003,1.2615,2410.5,2410.4,5.85509158]
[1750864995197,1.2615,2410.5,2410.4,13.25409158]
[1750864996429,1.2615,2410.5,2410.4,13.80409158]
[1750864996812,1.2615,2410.5,2410.4,13.25409158]
[1750864997222,1.2615,2410.5,2410.4,13.80409158]
[1750864997802,1.2615,2410.5,2410.4,23.80409158]
[1750864998734,1.2615,2410.5,2410.4,24.55439158]
[1750864998935,1.15719083,2410.5,2410.4,24.76406926]
[1750864999140,1.09995822,2410.5,2410.4,27.39496926]
[1750864999346,1.09995822,2410.5,2410.4,24.76406926]
[1750864999531,1.09995822,2410.5,2410.4,32.14127726]
[1750864999864,2.523,2410.9,2410.8,15.44830066]
[1750865000007,2.523,2410.9,2410.8,22.84430066]
[1750865001043,0.2234913,2411.4,2411.3,4.14714054]
[1750865001221,0.2234913,2411.4,2411.3,11.54114054]
[1750865001744,0.2234913,2411.4,2411.3,4.14714054]
[1750865001947,4.13607592,2412.2,2411.7,4.1463618]
[1750865002252,0.2072,2411.9,2411.8,4.1461644]
[1750865002619,10.0,2412.5,2412.1,4.14567607]
[1750865003030,10.0,2412.6,2411.9,4.1460488]
[1750865003243,0.2072,2412.1,2412.0,4.14593698]
[1750865004555,0.37,2412.7,2412.4,4.14520031]
[1750865004717,0.2072,2412.3,2411.9,0.2072]
[1750865004918,0.2072,2412.0,2411.9,4.14607026]
[1750865005228,0.8273,2412.6,2411.7,7.391]
[1750865005554,0.2072,2412.4,2411.9,4.14610887]
[1750865005854,0.8273,2412.6,2412.2,4.14544485]
[1750865006014,0.2072,2412.4,2411.9,0.2072]
[1750865006219,0.8273,2412.3,2411.2,0.8014]
[1750865006421,0.2072,2412.0,2411.7,4.14633918]
[1750865006651,0.2072,2412.0,2411.9,4.14610887]
[1750865007160,0.8273,2412.3,2412.2,4.14559323]
[1750865007739,0.8273,2412.3,2411.9,4.14605653]
[1750865007943,0.2072,2412.2,2412.1,4.1457651]
[1750865008259,0.7912,2412.6,2411.9,4.14609713]
[1750865008421,0.7912,2412.6,2412.3,4.14541746]
[1750865008617,0.7912,2412.6,2412.2,4.14551208]
[1750865008933,10.7912,2412.6,2412.2,4.14547774]
[1750865009145,0.8188,2412.4,2412.0,4.14583298]
[1750865009446,0.8188,2412.4,2412.2,4.14550963]
[1750865009932,0.8188,2412.4,2412.3,4.14542138]
[1750865012659,0.37,2412.6,2412.5,4.14507772]
[1750865012958,0.37,2412.7,2412.1,4.14564228]
[1750865013260,4.9386864,2412.6,2412.0,4.14590847]
[1750865013551,4.9386864,2412.6,2412.2,4.14547906]
[1750865013552,0.37,2412.5,2412.2,4.14547906]
[1750865013934,0.37,2412.5,2412.4,4.14524954]
[1750865014452,2.125,2412.8,2412.5,4.14498519]
[1750865014749,2.125,2412.8,2412.5,4.144909]
[1750865014951,3.54416,2412.8,2412.5,4.1449677]
[1750865015154,2.125,2412.8,2412.0,7.385]
[1750865015355,2.495,2412.8,2412.4,4.14524538]
[1750865015530,1.2615,2412.9,2411.9,4.14610887]
[1750865015734,1.2615,2412.9,2412.5,4.14495226]
[1750865015735,0.8074,2412.8,2412.5,4.14495226]
[1750865015935,0.8074,2412.8,2412.6,4.14479186]
[1750865016148,0.8074,2412.8,2412.5,4.14500598]
[1750865016346,1.64121276,2412.8,2412.5,4.14499447]
[1750865016642,1.64121276,2412.8,2411.8,0.8155]
[1750865016845,1.64121276,2412.8,2412.4,4.14515422]
[1750865017038,1.64121276,2412.8,2412.4,4.14513587]
[1750865017357,1.64121276,2412.8,2412.4,4.14516645]
[1750865017718,10.50277128,2412.7,2411.8,0.8155]
[1750865017940,10.0,2412.5,2411.6,4.14662464]
[1750865018141,17.383,2412.5,2412.0,4.14591205]
[1750865018577,17.383,2412.5,2412.1,4.14575325]
[1750865018881,17.383,2412.5,2411.5,0.795]
[1750865018882,17.383,2412.5,2412.2,4.145514]
[1750865019184,3.04572064,2412.4,2412.1,4.14569871]
[1750865019346,2.124,2412.3,2412.2,4.14559323]
[1750865019852,0.7922,2412.6,2412.5,4.14507772]
[1750865020058,0.7922,2412.6,2411.5,4.94171232]
[1750865020059,0.7922,2412.6,2412.3,4.14529007]
[1750865020252,1.2615,2412.9,2412.8,4.14456233]
[1750865020592,1.2615,2412.9,2412.1,0.8046]
[1750865020883,2.20903,2412.9,2412.5,4.144987]
[1750865021060,2.20903,2412.9,2412.6,4.1448291]
[1750865021614,2.20903,2412.9,2411.8,10.7779]
[1750865021758,4.0653505,2414.2,2412.5,0.7873]
[1750865021957,0.7849,2414.9,2413.8,4.1428453]
[1750865022471,0.7849,2414.9,2413.8,4.46048365]
[1750865022645,2.246,2414.3,2413.8,4.46048365]
[1750865022843,2.246,2414.3,2413.8,4.1428453]
[1750865023084,3.0117,2414.3,2413.8,4.1428453]
[1750865023583,3.0117,2414.3,2413.1,8.3859]
[1750865023794,10.0,2414.2,2413.2,4.14387535]
[1750865023943,10.0,2414.2,2413.1,8.3859]
[1750865023944,10.0,2414.2,2413.6,4.14310267]
[1750865024143,14.14216862,2414.2,2413.5,4.14323053]
[1750865024348,0.7625,2413.8,2412.9,4.14426787]
[1750865024550,2.245,2413.7,2413.3,4.14363574]
[1750865024744,10.30075,2413.6,2412.7,0.8032]
[1750865024981,10.30075,2413.6,2412.4,4.94844954]
[1750865025273,10.30075,2413.6,2412.6,4.14478543]
[1750865025485,10.30075,2413.6,2413.3,4.14358881]
[1750865025655,17.93075,2413.6,2413.2,4.1438069]
[1750865025854,2.017575,2413.5,2413.2,4.1438069]
[1750865026058,2.017575,2413.5,2413.3,4.14369587]
[1750865026658,2.017575,2413.5,2413.2,4.14379987]
[1750865029587,9.67642,2412.9,2412.6,0.34600953]
[1750865030163,9.67642,2412.9,2412.5,4.14497013]
[1750865030681,9.67642,2412.9,2412.4,4.14517708]
[1750865030881,0.2072,2412.5,2412.4,4.14517708]
[1750865031082,2.4522,2412.5,2412.4,4.14517708]
[1750865031669,2.4522,2412.5,2412.2,4.14548304]
[1750865031869,0.2072,2412.2,2412.1,4.1457651]
[1750865033398,2.245,2412.5,2412.4,4.14524954]
[1750865034463,2.4522,2412.5,2412.4,4.14524954]
[1750865035167,0.2234913,2413.9,2413.8,4.1428453]
[1750865037167,0.2234913,2413.9,2413.6,4.14309023]
[1750865037368,1.47034043,2413.9,2412.8,22.66186233]
[1750865037608,1.47034043,2413.9,2413.0,10.0]
[1750865037770,1.47034043,2413.9,2413.7,4.14301459]
[1750865037970,1.47034043,2413.9,2413.2,4.14381581]
[1750865038193,1.47034043,2413.9,2413.5,4.14319913]
[1750865038395,1.47034043,2413.9,2413.8,4.1428453]
[1750865038872,1.47034043,2413.9,2413.7,4.14294323]
[1750865039372,1.47034043,2413.9,2413.5,4.14330135]
[1750865039682,1.47034043,2413.9,2413.7,4.14301249]
[1750865039872,2.245,2413.8,2412.9,14.14436009]
[1750865040194,2.245,2413.8,2413.6,4.14318745]
[1750865040497,0.2234913,2413.9,2413.8,4.1428453]
[1750865041668,0.2234913,2413.9,2413.5,4.14336026]
[1750865041874,14.94009063,2413.8,2413.1,4.14404707]
[1750865042094,10.77,2413.7,2413.2,4.14386111]
[1750865042296,2.15671,2413.6,2413.3,4.14360438]
[1750865042679,10.77,2413.7,2413.6,4.14318859]
[1750865042881,0.7971,2413.8,2413.7,4.14301694]
[1750865043082,2.245,2413.8,2413.7,4.14301694]
[1750865043306,2.245,2413.8,2412.9,0.30722501]
[1750865043508,2.49184913,2413.8,2413.3,4.14357372]
[1750865043677,2.49184913,2413.8,2413.4,4.14352046]
[1750865043874,2.49184913,2413.8,2413.7,4.14301694]
[1750865044277,2.245,2413.8,2413.7,4.14301694]
[1750865044796,0.8267,2413.7,2412.7,0.7715]
[1750865045115,0.55,2413.6,2413.1,4.14396471]
[1750865045273,10.0,2413.6,2413.0,4.14420475]
[1750865045477,10.0,2413.6,2413.2,4.14383256]
[1750865045478,2.063678,2413.5,2413.2,4.14383256]
[1750865045810,19.921,2413.4,2412.7,0.2072]
[1750865045975,19.921,2413.4,2412.1,0.786]
[1750865045976,22.1457,2413.3,2412.1,0.786]
[1750865046174,10.0,2413.2,2412.7,4.14472786]
[1750865046385,2.62894864,2413.1,2412.1,0.9932]
[1750865046572,0.2072,2412.5,2412.4,4.14518831]
[1750865046794,0.7614,2412.8,2412.7,4.14473411]
[1750865047209,3.0064,2412.8,2412.7,4.14473411]
[1750865047409,0.2072,2412.7,2412.6,4.14484879]
[1750865048200,2.4522,2412.7,2412.6,4.14484879]
[1750865048710,0.2072,2412.7,2412.6,4.14484879]
[1750865048884,2.4522,2412.7,2412.6,4.97383876]
[1750865049089,2.245,2412.7,2412.6,4.97383876]
[1750865049298,2.4522,2412.7,2412.5,4.14499023]
[1750865049477,2.4522,2412.7,2412.4,4.14522268]
[1750865049478,0.2072,2412.7,2412.4,4.14522268]
[1750865049678,2.245,2413.2,2413.0,4.1440653]
[1750865049878,2.245,2413.2,2413.1,4.14404707]
[1750865050988,2.245,2413.2,2413.0,4.1440653]
[1750865050989,2.245,2413.2,2412.6,4.45097509]
[1750865051199,2.245,2413.2,2412.6,1.52383751]
[1750865051515,2.245,2413.2,2412.4,4.14513387]
[1750865051516,0.801,2413.1,2412.8,4.1445556]
[1750865051681,0.801,2413.1,2412.2,0.8086]
[1750865052019,0.37,2413.0,2412.4,4.14524954]
[1750865052190,0.37,2413.0,2412.8,4.14446144]
[1750865052700,0.37,2413.6,2412.9,4.14439056]
[1750865053015,2.669,2413.7,2413.5,4.14336026]
[1750865053218,0.37,2413.7,2413.5,4.14336026]
[1750865053409,2.299,2413.6,2413.5,4.14336026]
[1750865053607,0.37,2413.7,2413.6,4.14318859]
[1750865053913,12.669,2413.7,2413.6,4.14318859]
[1750865054796,10.37,2413.7,2413.6,4.14318859]
[1750865054996,12.669,2413.7,2413.6,4.14318859]
[1750865055921,0.2234913,2413.9,2413.8,4.1428453]
[1750865056124,2.5224913,2413.9,2413.8,4.1428453]
[1750865056897,2.5224913,2413.9,2413.3,4.14368044]
[1750865056898,14.14297365,2413.8,2413.3,4.14368044]
[1750865057221,10.0,2413.8,2413.5,4.14326539]
[1750865057788,10.0,2413.8,2413.0,0.812]
[1750865057789,10.0,2413.8,2412.8,0.41444614]
[1750865057988,0.823,2413.6,2413.1,4.14392021]
[1750865058336,8.474,2413.6,2413.3,4.14358435]
[1750865058516,0.37,2413.5,2413.4,4.14353168]
[1750865058826,2.669,2413.5,2413.4,4.14353168]
[1750865059152,0.37,2413.5,2413.4,4.95553168]
[1750865059287,0.37,2413.5,2413.4,5.86545233]
[1750865059489,0.37,2413.5,2413.4,4.14353168]
[1750865060089,0.37,2413.5,2413.3,4.14367501]
[1750865060290,0.37,2413.5,2413.4,4.14353194]
[1750865060922,0.37,2413.5,2413.3,4.14361438]
[1750865061122,0.2064,2413.4,2413.1,4.9432837]
[1750865061325,0.2064,2413.4,2413.3,4.14370364]
[1750865061530,0.2064,2413.4,2413.2,4.14387027]
[1750865061908,0.2064,2413.4,2413.3,4.14370364]
[1750865062912,0.37,2413.5,2413.4,4.14353194]
[1750865063516,0.37,2413.8,2413.7,4.14301694]
[1750865065510,0.2234913,2413.9,2413.8,4.1428453]
[1750865067947,0.2234913,2413.9,2413.8,5.1772453]
[1750865068154,0.2234913,2413.9,2413.8,6.14059859]
[1750865068353,0.2234913,2413.9,2413.8,16.14059859]
[1750865068827,0.2234913,2413.9,2413.8,6.14059859]
[1750865069033,0.2234913,2413.9,2413.8,5.1772453]
[1750865069541,0.2234913,2413.9,2413.6,0.31329329]
[1750865069735,0.2234913,2413.9,2413.8,4.1428453]
[1750865070741,0.2234913,2413.9,2413.7,4.14298038]
[1750865070943,0.2234913,2413.9,2413.4,0.828]
[1750865071154,0.2064,2413.6,2413.1,0.9679]
[1750865071360,0.7833,2413.8,2413.2,0.85559]
[1750865071524,0.2064,2413.5,2413.1,0.9679]
[1750865071729,0.2064,2413.5,2413.2,0.2064]
[1750865071929,0.2234913,2413.9,2413.4,0.2064]
[1750865072232,0.2234913,2413.9,2413.6,0.2064]
[1750865072539,0.2064,2413.6,2413.5,4.14319533]
[1750865072915,2.298,2413.8,2413.7,4.14301694]
[1750865073243,0.2234913,2413.9,2413.8,4.1428453]
[1750865073813,0.2234913,2413.9,2413.8,4.8980453]
[1750865075347,0.2234913,2413.9,2413.8,4.1428453]
[1750865077126,0.2234913,2413.9,2413.8,4.3492453]
[1750865077342,0.2234913,2413.9,2413.8,5.23017924]
[1750865078651,0.2234913,2413.9,2413.8,5.02377924]
[1750865078847,0.2234913,2413.9,2413.8,5.23017924]
[1750865080428,0.2234913,2413.9,2413.8,5.02377924]
[1750865080634,0.2234913,2413.9,2413.8,4.1428453]
[1750865082956,0.2234913,2413.9,2413.7,4.34935754]
[1750865083333,0.2234913,2413.9,2413.7,4.34938696]
[1750865083931,0.2234913,2413.9,2413.7,0.2064]
[1750865084134,4.34950714,2413.7,2413.2,4.3501832]
[1750865084343,0.2064,2413.6,2413.2,5.33516546]
[1750865084545,0.37,2413.5,2413.0,4.14421881]
[1750865084736,0.37,2413.5,2413.2,4.14378036]
[1750865085134,0.37,2413.6,2412.9,8.3879]
[1750865085357,10.5934913,2413.9,2413.1,4.14404707]
[1750865085526,10.5934913,2413.9,2413.3,4.14359731]
[1750865085723,10.5934913,2413.9,2413.4,4.14338432]
[1750865085951,10.5934913,2413.9,2413.5,4.14334912]
[1750865086157,14.73624629,2413.9,2413.2,0.46940471]
[1750865086335,10.5934913,2413.9,2413.2,4.14378865]
[1750865086539,4.14302364,2413.7,2413.2,4.14378865]
[1750865086742,4.14289673,2413.8,2413.3,4.14368043]
[1750865087239,14.73621745,2413.9,2413.4,4.14347319]
[1750865087558,6.33191721,2413.8,2413.3,4.14364374]
[1750865088062,2.18905763,2413.8,2413.4,4.14352809]
[1750865088254,2.8374913,2413.9,2413.5,4.14323163]
[1750865088862,6.98027504,2413.9,2412.9,8.3859]
[1750865089030,4.51288283,2413.8,2412.9,8.3859]
[1750865089363,4.51288283,2413.8,2413.3,4.14368154]
[1750865089364,0.69803741,2413.7,2413.3,4.14368154]
[1750865089765,0.7501,2413.6,2413.2,4.14377843]
[1750865089935,0.37,2413.5,2412.8,4.55883875]
[1750865090130,10.0,2413.4,2412.8,4.14455824]
[1750865090459,10.0,2413.4,2412.8,4.14447049]
[1750865090460,2.614,2413.3,2412.8,4.14447049]
[1750865090761,2.614,2413.3,2412.6,0.8094]
[1750865090762,2.614,2413.3,2412.7,4.14464638]
[1750865090938,10.37,2413.2,2412.0,0.7811]
[1750865091143,10.0,2412.9,2412.1,0.34608126]
[1750865091338,12.9795518,2412.9,2412.4,4.1451374]
[1750865091557,0.37,2412.8,2412.4,4.1451374]
[1750865091862,2.244,2412.7,2412.4,4.1451374]
[1750865092067,2.244,2412.7,2412.5,4.14507269]
[1750865092231,2.244,2412.7,2412.4,4.14518541]
[1750865093283,2.244,2412.7,2412.2,4.14553726]
[1750865093467,2.244,2412.7,2412.3,4.14534289]
[1750865093668,6.38881571,2412.7,2412.2,4.14549287]
[1750865093850,2.244,2412.7,2412.3,4.1454169]
[1750865094379,6.38873457,2412.7,2412.2,4.1454908]
[1750865094675,0.2072,2412.4,2412.2,4.1454908]
[1750865094878,0.2072,2412.4,2412.3,4.14542138]
[1750865095444,2.244,2412.7,2412.4,4.14511581]
[1750865095785,0.2072,2412.6,2412.4,4.14511581]
[1750865096655,0.2072,2412.6,2412.5,4.14507772]
[1750865097394,2.245,2412.9,2412.5,0.2072]
[1750865097550,0.5772,2412.6,2412.4,4.14509005]
[1750865098066,0.5772,2412.6,2412.1,4.3528029]
[1750865098279,0.5772,2412.6,2412.3,4.14542138]
[1750865098452,0.37,2412.6,2412.4,4.14521664]
[1750865098650,0.37,2412.6,2412.2,4.14543501]
[1750865098856,0.2072,2412.4,2412.3,4.14539291]
[1750865100801,0.37,2412.6,2412.5,4.14507772]
[1750865101105,0.37,2412.6,2412.5,5.38864648]
[1750865101106,0.1628,2412.6,2412.5,5.38864648]
[1750865101807,0.1628,2412.6,2412.5,6.40964648]
[1750865102178,0.1628,2412.6,2412.5,13.89064648]
[1750865103005,0.1628,2412.6,2412.5,12.87564648]
[1750865103305,0.1628,2412.6,2412.5,13.08284648]
[1750865103801,0.1628,2412.6,2412.5,14.39764648]
[1750865104607,0.1628,2412.6,2412.5,26.64264648]
[1750865104791,0.1628,2412.6,2412.5,29.98485248]
[1750865105177,0.1628,2412.6,2412.5,31.76766648]
[1750865105904,0.1628,2412.6,2412.5,26.64264648]
[1750865106105,0.1628,2412.6,2412.5,16.91064648]
[1750865106299,0.1628,2412.6,2412.5,24.37864648]
[1750865107004,0.1628,2412.6,2412.5,14.37864648]
[1750865107302,0.1628,2412.6,2412.5,26.62364648]
[1750865108285,0.1628,2412.6,2412.5,24.37264648]
[1750865111079,0.1628,2412.6,2412.5,36.63814062]
[1750865111410,0.1628,2412.6,2412.5,40.59643662]
[1750865112003,0.1628,2412.6,2412.5,41.23043662]
[1750865112782,0.1628,2412.6,2412.5,33.56853662]
[1750865112998,0.1628,2412.6,2412.5,38.77814062]
[1750865113774,0.1628,2412.6,2412.5,26.50464648]
[1750865114904,0.1628,2412.6,2412.5,16.91064648]
[1750865115080,0.1628,2412.6,2412.5,6.91064648]
[1750865115279,0.1628,2412.6,2412.5,24.34164648]
[1750865115982,0.1628,2412.6,2412.5,23.79164648]
[1750865116414,0.1628,2412.6,2412.5,4.35227772]
[1750865116717,0.1628,2412.6,2412.4,4.14522187]
[1750865116912,0.7585,2412.5,2412.4,4.14522187]
[1750865117688,0.9185,2412.5,2411.7,5.26952434]
[1750865117893,0.2072,2412.4,2412.2,4.14557956]
[1750865118202,0.2072,2412.4,2412.3,4.14542138]
[1750865118393,0.2072,2412.4,2412.1,11.57667493]
[1750865118588,0.2072,2412.4,2412.2,4.14557328]
[1750865118797,0.2072,2412.4,2412.1,11.57668731]
[1750865118981,0.2072,2412.4,2412.1,4.14568731]
[1750865119309,0.2072,2412.4,2412.3,4.14542138]
[1750865119702,0.2072,2412.4,2412.1,4.14569969]
[1750865119885,0.2072,2412.4,2412.2,4.14549089]
[1750865120613,3.0805,2412.5,2411.9,4.14602117]
[1750865120816,0.73883332,2412.4,2412.0,4.14585572]
[1750865121018,0.2072,2412.1,2412.0,4.14585572]
[1750865122019,0.2072,2412.1,2412.0,4.14593698]
[1750865122213,0.2072,2412.1,2411.9,11.57705957]
[1750865122419,0.2072,2412.1,2412.0,4.14593698]
[1750865122917,3.0805,2412.5,2412.4,4.14524954]
[1750865123221,0.2072,2412.4,2412.3,4.14542138]
[1750865123424,0.16,2412.5,2412.4,4.14524954]
[1750865123593,0.1628,2412.6,2412.5,4.14507772]
[1750865123791,0.1628,2412.6,2412.5,4.35227772]
[1750865124320,0.1628,2412.6,2412.5,11.78327772]
[1750865124997,0.1628,2412.6,2412.5,4.14507772]
[1750865125197,0.1628,2412.6,2412.5,11.57607772]
[1750865125399,0.1628,2412.6,2412.3,11.57640238]
[1750865125717,0.3672,2412.5,2412.4,4.14521994]
[1750865125910,0.3672,2412.5,2412.3,11.5763919]
[1750865125911,0.3672,2412.5,2412.3,4.14540074]
[1750865126328,0.798,2412.4,2412.0,4.14593066]
[1750865126510,0.2072,2412.3,2412.2,4.14559323]
[1750865126687,0.3672,2412.3,2412.2,4.14559323]
[1750865126892,0.16,2412.3,2412.2,4.14559323]
[1750865127086,0.16,2412.3,2412.2,5.73854011]
[1750865127616,0.16,2412.3,2412.2,5.94574011]
[1750865129107,0.16,2412.3,2412.0,4.14586894]
[1750865129427,0.16,2412.3,2411.9,4.1459965]
[1750865129428,0.3672,2412.3,2412.1,11.57674973]
[1750865129587,0.3672,2412.3,2412.1,7.431]
[1750865129787,0.798,2412.2,2412.0,4.14582356]
[1750865129988,0.798,2412.2,2412.1,4.1457651]
[1750865130628,0.958,2412.2,2412.1,4.1457651]
[1750865130846,0.16,2412.2,2412.1,4.1457651]
[1750865131054,0.16,2412.2,2412.1,5.71802397]
[1750865131425,0.16,2412.2,2412.1,13.14902397]
[1750865132205,0.16,2412.2,2412.1,7.431]
[1750865132406,4.92383754,2412.5,2412.0,7.431]
[1750865132407,0.16,2412.3,2412.0,7.431]
[1750865132654,0.2072,2412.2,2412.1,4.14560498]
[1750865132811,0.3672,2412.2,2412.1,4.14560498]
[1750865133521,0.3672,2412.2,2412.1,4.1457651]
[1750865134346,0.3672,2412.2,2412.0,11.57689837]
[1750865134914,0.3672,2412.2,2412.1,4.1457651]
[1750865135541,0.3672,2412.2,2412.0,7.431]
[1750865136247,0.3672,2412.2,2411.9,4.14603359]
[1750865136453,0.16,2412.1,2411.8,0.2072]
[1750865136631,0.2072,2411.8,2411.4,4.14694798]
[1750865136943,0.16,2411.7,2411.6,4.14662464]
[1750865138011,0.16,2411.7,2411.3,4.35432654]
[1750865138216,0.16,2411.7,2411.5,4.1467185]
[1750865138447,0.16,2411.7,2411.3,4.14705709]
[1750865138448,0.2072,2411.7,2411.3,4.14705709]
[1750865138750,0.16,2411.7,2410.6,0.7783]
[1750865138915,0.2072,2411.4,2411.3,4.14712504]
[1750865139115,0.3672,2411.4,2411.3,4.14712504]
[1750865140762,0.16,2411.4,2411.3,5.18376809]
[1750865141056,0.16,2411.4,2411.3,12.61376809]
[1750865141637,0.7807,2412.0,2411.5,4.14679659]
[1750865141859,0.9879,2412.0,2411.9,4.14610887]
[1750865143251,0.2072,2412.0,2411.9,4.14610887]
[1750865143453,0.16,2412.1,2412.0,4.14593698]
[1750865143648,2.5192,2412.2,2412.0,4.14593698]
[1750865144054,2.5192,2412.2,2411.9,4.14605529]
[1750865144425,2.5192,2412.2,2412.0,4.1459204]
[1750865144827,2.5192,2412.2,2411.9,4.14601624]
[1750865145033,2.5192,2412.2,2411.9,4.09601624]
[1750865145235,2.5192,2412.2,2412.0,4.14592757]
[1750865145450,2.5192,2412.2,2411.9,4.1460437]
[1750865145853,0.2072,2412.0,2411.6,0.2072]
[1750865146058,0.3672,2412.0,2411.9,4.14610887]
[1750865146226,0.16,2412.0,2411.9,4.14610887]
[1750865146535,0.16,2412.5,2412.4,4.14524954]
[1750865152463,0.16,2412.5,2412.3,11.78058942]
[1750865152464,0.16,2412.5,2412.3,4.35259336]
[1750865152629,0.16,2412.5,2412.2,4.14552924]
[1750865152824,0.3672,2412.5,2412.0,4.35304551]
[1750865153066,0.2072,2412.3,2412.0,4.14584551]
[1750865153367,0.3672,2412.3,2412.0,4.14585784]
[1750865153569,0.3672,2412.3,2411.8,0.2072]
[1750865153771,0.2072,2412.0,2411.7,4.14636148]
[1750865153988,4.94687028,2411.9,2411.4,4.1468895]
[1750865154133,4.1467208,2411.6,2411.2,0.2072]
[1750865154461,0.8007,2411.6,2411.5,4.14679659]
[1750865154766,0.2072,2411.6,2411.4,4.14687604]
[1750865155133,0.2072,2411.6,2411.1,0.2072]
[1750865155334,0.2072,2411.6,2411.5,4.14679659]
[1750865155940,0.2072,2411.6,2411.4,4.14687708]
[1750865156143,0.2072,2411.6,2411.5,4.14679659]
[1750865156340,0.2072,2411.6,2411.4,4.14689613]
[1750865156579,0.2072,2411.6,2411.5,4.14679659]
[1750865156880,0.2072,2411.6,2411.4,4.14688275]
[1750865157375,0.2072,2411.6,2411.1,0.2072]
[1750865157554,0.2072,2411.6,2411.5,4.14679659]
[1750865158872,0.16,2411.8,2411.7,4.1464527]
[1750865159089,1.67857,2411.8,2411.4,7.424]
[1750865159244,1.67857,2411.8,2411.6,4.14653378]
[1750865160056,1.67857,2411.8,2411.7,4.1464527]
[1750865160253,1.67857,2411.8,2411.6,4.1465439]
[1750865160442,0.3672,2411.8,2411.7,4.1464527]
[1750865160651,0.16,2411.8,2411.7,4.1464527]
[1750865161255,2.9842,2412.3,2411.8,4.14628078]
[1750865161256,0.16,2411.9,2411.8,4.14628078]
[1750865162688,0.16,2411.9,2411.8,4.35348078]
[1750865166194,0.16,2412.2,2412.0,4.1457756]
[1750865166482,0.41202,2412.2,2411.9,4.14604455]
[1750865166682,0.41202,2412.2,2412.0,4.14591309]
[1750865166887,0.16,2412.2,2412.0,4.14591309]
[1750865167591,0.16,2412.2,2412.1,4.1457651]
[1750865168271,0.16,2412.2,2412.0,4.14583866]
[1750865168467,0.16,2412.2,2411.8,4.14624408]
[1750865168668,0.2072,2412.1,2411.8,4.14624408]
[1750865168891,4.94792791,2412.0,2411.5,4.14669422]
[1750865169073,0.3672,2411.9,2411.5,4.14669422]
[1750865169276,0.3672,2411.9,2411.7,4.1464486]
[1750865169481,0.3672,2411.9,2411.8,4.14628078]
[1750865170084,0.3672,2411.9,2411.7,4.14636174]
[1750865170484,0.3672,2411.9,2411.4,0.51877167]
[1750865170687,5.04489658,2411.9,2411.4,4.35410355]
[1750865170874,0.2072,2411.7,2411.4,4.14690355]